Cogmind - Beta 13 @@@ ROGUE MODE // 2024.03.22 @ 02:10:42 Player: Desymo99 Result: Destroyed by G-47 Trooper with Particle Gun Performance ------------- Evolutions (3) 1500 Regions Visited (4) 800 Robots Destroyed (63) 315 Value Destroyed (1636) 1636 Prototype IDs (0) 0 Alien Tech Used (0) 0 Bonus (45) 45 TOTAL SCORE: 4296 Bonus ------- High Alert Combat Kills 45 Cogmind --------- Core Integrity 0/700 Matter 52/300 Energy 94/100 System Corruption 1% Temperature Cool (9) Movement Core (50) Location -7/Factory Parts ------- > --- POWER (1) -------- (None) > --- PROPULSION (4) --- (None) > --- UTILITY (4) ------ (None) > --- WEAPON (4) ------- Axe > --- INVENTORY (5) ---- Improved Ion Engine Heavy Assault Rifle Rocket Launcher Peak State ------------ > --- POWER ------------ Improved Ion Engine > --- PROPULSION ------- Aluminum Leg Aluminum Leg Improved Aluminum Leg Improved Aluminum Leg > --- UTILITY ---------- Large Storage Unit Hacking Suite > --- WEAPON ----------- Autogun Autogun Autogun Autogun > --- INVENTORY -------- Light Angular Momentum Engine Aluminum Leg Improved Aluminum Leg Improved Aluminum Leg Improved Sensor Array Transport Network Coupler Improved Targeting Computer Medium Armor Plating Long-range Tractor Beam Heavy Assault Rifle Heavy Assault Rifle Autogun Rocket Launcher Datajack Axe [Rating: 23] Favorites ----------- Power Improved Ion Engine Engine Improved Ion Engine Propulsion Aluminum Leg Treads Advanced Treads Leg Aluminum Leg Wheel Armored Huge Wheel Utility Large Storage Unit Device Improved Sensor Array Storage Large Storage Unit Hackware Hacking Suite Weapon Autogun Energy Gun EM Pulse Gun Ballistic Gun Autogun Ballistic Cannon Flak Cannon Launcher Rocket Launcher Slashing Weapon Axe Build | -11 -10 -9 -8 -7 ------- Run | Yrd Mat Mat Mat Fac Slots Evolved 6 | . . 2 2 2 Power . | . . . . . Propulsion 2 | . . . 2 . Utility 2 | . . . . 2 Weapon 2 | . . 2 . . Parts Attached 51 | 5 10 15 11 10 Power 6 | 1 2 1 2 . Engine 6 | 1 2 1 2 . Core . | . . . . . Reactor . | . . . . . Propulsion 18 | 2 2 2 6 6 Treads 2 | . . . . 2 Leg 15 | 2 2 2 6 3 Wheel 1 | . . . . 1 Hover . | . . . . . Flight . | . . . . . Utility 4 | . 3 . . 1 Device 1 | . . . . 1 Storage 2 | . 2 . . . Processor . | . . . . . Hackware 1 | . 1 . . . Protection . | . . . . . Artifact . | . . . . . Weapon 23 | 2 3 12 3 3 Energy Gun 5 | 2 2 . . 1 Energy Cannon . | . . . . . Ballistic Gun 15 | . 1 12 2 . Ballistic Cannon 1 | . . . . 1 Launcher 1 | . . . 1 . Special Weapon . | . . . . . Impact Weapon . | . . . . . Slashing Weapon 1 | . . . . 1 Piercing Weapon . | . . . . . Special Melee Weapon . | . . . . . Unidentified Prototypes . | . . . . . Parts Lost 27 | . 3 2 4 18 Power 2 | . . . 1 1 Propulsion 12 | . 1 . 2 9 Utility 2 | . . . . 2 Weapon 11 | . 2 2 1 6 Highest Loss Streak 6 | . 3 1 2 6 To Critical Strikes . | . . . . . Average Slot Usage (%) 90 | . 91 99 99 47 Engine 11 | . 14 11 9 4 Leg 25 | . 27 22 35 14 Storage 11 | . 14 11 9 4 Hackware 9 | . 10 11 9 6 Energy Gun 7 | . 16 . . . Ballistic Gun 23 | . 7 42 35 8 Naked Turns . | . . . . . Heaviest Build 40 | 7 29 39 40 40 Greatest Support 46 | 20 20 26 46 44 Greatest Overweight (x) 6 | . 2 1 1 6 Average Overweight (x) . | . . 1 . . Largest Inventory Capacity 15 | 5 15 15 15 15 Average Capacity 14 | 5 14 15 15 11 Most Carried 15 | 5 14 15 15 15 Average Carried 11 | 2 8 13 14 10 Final Capacity 15 | 5 15 15 15 5 Final Carried 15 | 5 14 15 14 3 Class Distribution -------------------- 34% | Mutant 23% | Scavenger-Mutant 22% | Gunner 19% | Scavenger-Gunner Dominant Class ---------------- Mutant | -10/Materials Scavenger-Gunner | -9/Materials Gunner | -8/Materials Mutant | -7/Factory Resources | -11 -10 -9 -8 -7 ----------- Run | Yrd Mat Mat Mat Fac Matter Collected 1374 | 250 143 395 533 53 Remotely . | . . . . . Salvage Created 2333 | . 627 898 755 53 Parts 130 | . 35 55 38 2 Haulers Intercepted 5 | . 2 2 1 . Recyclers Shooed 2 | . . 2 . . Parts Field Recycled . | . . . . . Retrieved Matter . | . . . . . Parts Self-Destructed . | . . . . . Prevented . | . . . . . Kills | -11 -10 -9 -8 -7 ------- Run | Yrd Mat Mat Mat Fac Combat Hostiles Destroyed 46 | . 9 20 15 2 Melee 1 | . . . . 1 Guns 44 | . 8 20 15 1 AOE 1 | . 1 . . . Classes Destroyed 9 | . 7 2 . . Builder 2 | . . 2 . . Hauler 5 | . 2 2 1 . Recycler 3 | . 1 1 1 . Mechanic 1 | . 1 . . . Operator 1 | . 1 . . . Watcher 5 | . 2 3 . . Swarmer 17 | . 3 10 4 . Grunt 21 | . 6 4 9 2 Sentry 8 | . . 6 2 . Best Kill Streak 7 | . 4 7 4 2 Combat Bots Only 4 | . 3 4 4 2 Max Kills in Single Turn 2 | . 1 2 2 1 Gunslinging 1 | . . 1 . . Exploded 1 | . 1 . . . Melee 1 | . . . . 1 Uniques/NPCs Destroyed . | . . . . . Combat | -11 -10 -9 -8 -7 -------- Run | Yrd Mat Mat Mat Fac Hostile Shots Fired 496 | . 44 82 70 300 Missed 144 | . 10 19 5 110 Damage Taken 4130 | . 441 657 908 2124 Core 917 | . 88 65 61 703 Absorbed by Shields . | . . . . . Core Remaining (%) 83 | 100 64 83 88 . Volleys Fired 147 | . 50 49 43 5 Largest 4 | . 2 4 4 2 Hottest 92 | . 80 92 92 89 Shots Fired 437 | . 88 185 156 8 Gun 432 | . 88 185 156 3 Cannon 5 | . . . . 5 Launcher . | . . . . . Special . | . . . . . Kinetic 363 | . 17 185 156 5 Thermal 21 | . 21 . . . Explosive . | . . . . . Electromagnetic 53 | . 50 . . 3 Robot Hit Streak 13 | . 13 12 12 9 Robot Miss Streak 7 | . 2 7 4 3 Penetration Max . | . . . . . Secondary Targets 5 | . . 4 1 . Max Gunslinging Chain 1 | . . 1 1 . Shots Hit Robots 265 | . 63 104 91 7 Core Hits 117 | . 25 49 34 9 Critical Kills 1 | . . . 1 . Critical Parts Destroyed 1 | . . 1 . . Critical Strikes 3 | . 1 1 1 . Destroy 2 | . . 1 1 . Corrupt 1 | . 1 . . . Melee Attacks 2 | . . . . 2 Impact . | . . . . . Slashing 2 | . . . . 2 Piercing . | . . . . . Sneak Attacks . | . . . . . Combat Hostiles . | . . . . . Follow-up Attacks . | . . . . . Damage Inflicted 3823 | . 961 1160 1512 190 Guns 3473 | . 856 1072 1512 33 Cannons 114 | . . . . 114 Explosions 193 | . 105 88 . . Melee 34 | . . . . 34 Ramming 9 | . . . . 9 Kinetic 2872 | . 174 1072 1512 114 Thermal 383 | . 295 88 . . Explosive . | . . . . . Electromagnetic 525 | . 492 . . 33 Impact . | . . . . . Slashing 34 | . . . . 34 Piercing . | . . . . . Highest Corruption 1 | . . . . 1 Average Corruption 1 | . . . . 1 Corruption Purged . | . . . . . Corruption Blocked . | . . . . . Overload Shots . | . . . . . Overflow Damage 104 | . 36 68 . . Projectiles . | . . . . . Explosions 104 | . 36 68 . . Melee . | . . . . . Knockbacks 2 | . . . . 2 Impact . | . . . . . Kinetic 2 | . . . . 2 Secondary . | . . . . . Self-Inflicted Damage 40 | . 40 . . . Shots 1 | . 1 . . . Rammed 7 | . . . . 7 Targets Rammed 8 | . . . . 8 Kicked . | . . . . . Crushed 1 | . . . . 1 Highest Temperature 439 | . 144 264 439 13 Average Temperature 90 | . 51 63 154 6 Received Heat Transfer 1824 | . 195 180 486 963 Effects 7 | . . 1 6 . Shutdowns 2 | . . . 2 . Energy Bleed 2 | . . 1 1 . Matter Decay 1 | . . . 1 . Short Circuit 2 | . . . 2 . Siege Activations . | . . . . . Robots Corrupted . | . . . . . Combat Hostiles . | . . . . . Parts Fried 3 | . 3 . . . Impact Corruptions . | . . . . . Robots Melted . | . . . . . Combat Hostiles . | . . . . . Parts Melted . | . . . . . Heat Transferred 575 | . 525 50 . . Parts Sabotaged . | . . . . . Parts Stolen . | . . . . . Parts Stripped . | . . . . . Power Chain Reactions 1 | . 1 . . . Alert | -11 -10 -9 -8 -7 ------- Run | Yrd Mat Mat Mat Fac Peak Influence 522 | . 255 490 522 215 Initial 198 | . . . 198 175 Average 187 | . 71 285 357 141 Maximum Alert Level 2 | . 1 2 2 1 Low Security (%) 56 | 100 87 23 3 97 Level 1 34 | . 12 58 69 2 Level 2 9 | . . 17 27 . Level 3 . | . . . . . Level 4 . | . . . . . Level 5 . | . . . . . High Security . | . . . . . Max Security . | . . . . . Squads Dispatched 4 | . 1 1 . 2 Investigation . | . . . . . Extermination 1 | . . . . 1 Reinforcement 3 | . 1 1 . 1 Assault . | . . . . . Garrison . | . . . . . Intercept . | . . . . . Searches Triggered . | . . . . . Construction Impeded . | . . . . . Haulers Reinforced . | . . . . . Active Scanning Responses . | . . . . . Cargo Convoy Interrupts . | . . . . . Stealth | -11 -10 -9 -8 -7 --------- Run | Yrd Mat Mat Mat Fac Distress Signals 6 | . 2 1 3 . Communications Jammed . | . . . . . Distress Signals . | . . . . . Times Spotted 87 | . 19 32 24 12 Peak Tracking Total 6 | . 3 3 6 5 Tactical Retreats 8 | . 1 2 2 3 Traps | -11 -10 -9 -8 -7 ------- Run | Yrd Mat Mat Mat Fac Traps Triggered 1 | . . . . 1 Indirectly . | . . . . . Trap Hack Attempts . | . . . . . Triggered . | . . . . . Disarmed . | . . . . . Reprogrammed . | . . . . . Reused . | . . . . . Traps Extracted . | . . . . . Installed . | . . . . . Triggered . | . . . . . Machines | -11 -10 -9 -8 -7 ---------- Run | Yrd Mat Mat Mat Fac Machines Disabled 6 | . 1 4 1 . Max in Single Turn 3 | . 1 3 1 . Machines Repaired . | . . . . . Machines Dismantled . | . . . . . Machines Sabotaged . | . . . . . Overloaded Fab Kills . | . . . . . Hacking | -11 -10 -9 -8 -7 --------- Run | Yrd Mat Mat Mat Fac Machines Accessed 1 | . . 1 . . Terminals 1 | . . 1 . . Fabricators . | . . . . . Repair Stations . | . . . . . Recycling Units . | . . . . . Scanalyzers . | . . . . . Garrison Access . | . . . . . Total Hacks 1 | . . 1 . . Successful 1 | . . 1 . . Failed . | . . . . . Catastrophic . | . . . . . Database Lockouts . | . . . . . Manual . | . . . . . Terminals 1 | . . 1 . . Fabricators . | . . . . . Repair Stations . | . . . . . Recycling Units . | . . . . . Scanalyzers . | . . . . . Garrison Access . | . . . . . Terminal Hacks 1 | . . 1 . . Record 1 | . . 1 . . Fabricator Hacks . | . . . . . Repair Station Hacks . | . . . . . Recycling Unit Hacks . | . . . . . Scanalyzer . | . . . . . Garrison Access Hacks . | . . . . . Unauthorized Hacks . | . . . . . Terminals . | . . . . . Fabricators . | . . . . . Repair Stations . | . . . . . Recycling Units . | . . . . . Scanalyzers . | . . . . . Garrison Access . | . . . . . Data Cores Recovered 1 | . 1 . . . Used . | . . . . . Hacking Detections . | . . . . . Full Trace Events . | . . . . . Feedback Events . | . . . . . Feedback Blocked . | . . . . . Robot Schematics Acquired . | . . . . . Robots Built . | . . . . . Authchips . | . . . . . Time . | . . . . . Total Robot Build Rating . | . . . . . Part Schematics Acquired . | . . . . . Parts Built . | . . . . . Authchips . | . . . . . Time . | . . . . . Total Part Build Rating . | . . . . . Parts Repaired . | . . . . . Time . | . . . . . Parts Recycled . | . . . . . Recycled Matter . | . . . . . Retrieved Matter . | . . . . . Retrieved Components . | . . . . . Parts Scanalyzed . | . . . . . Part Schematics Acquired . | . . . . . Parts Damaged . | . . . . . Bothacking | -11 -10 -9 -8 -7 ------------ Run | Yrd Mat Mat Mat Fac Used RIF Installer . | . . . . . Robots Hacked . | . . . . . Non-combat . | . . . . . Combat . | . . . . . Robot Hacks Applied . | . . . . . Relay Couplers Released . | . . . . . Fabnet Peak Effective % . | . . . . . Robots Rewired . | . . . . . Allies Hacked . | . . . . . Hacks Repelled . | . . . . . Allies | -11 -10 -9 -8 -7 -------- Run | Yrd Mat Mat Mat Fac Total Allies . | . . . . . Largest Group . | . . . . . Highest-Rated Group . | . . . . . Highest-Rated Ally . | . . . . . Total Orders . | . . . . . Ally Attacks . | . . . . . Total Damage . | . . . . . Kills . | . . . . . Allies Corrupted . | . . . . . Allies Melted . | . . . . . Intel | -11 -10 -9 -8 -7 ------- Run | Yrd Mat Mat Mat Fac Robot Analysis Total . | . . . . . Derelict Logs Recovered . | . . . . . Drone Launches . | . . . . . Drone Recoveries . | . . . . . Exploration | -11 -10 -9 -8 -7 ------------- Run | Yrd Mat Mat Mat Fac Turns Passed 3430 | 111 1348 1007 566 398 Spaces Moved 1600 | 76 605 351 285 283 Core 55 | 5 . . . 50 Treads 19 | . . . . 19 Legs 1468 | 71 605 351 285 156 Wheels 58 | . . . . 58 Hover . | . . . . . Flight . | . . . . . Fastest Speed 50 | 50 120 190 120 50 Average Speed 159 | 115 186 190 120 112 Slowest Speed 350 | 120 260 190 190 350 Overloaded Moves . | . . . . . Propulsion Burnouts . | . . . . . Robots Hopped . | . . . . . Cave-ins Triggered . | . . . . . Exploration Rate (%) 31 | 4 75 41 32 7 Regions Visited 4 Branch Regions . Pre-discovered Areas . | . . . . . Known Exits Taken . | . . . . . Unknown Exits Taken 4 | 1 1 1 1 . Scrap Searched . | . . . . . Spaces Dug . | . . . . . Terrain Destroyed 30 | . 5 25 . . Melee . | . . . . . Projectile . | . . . . . AOE 30 | . 5 25 . . Terrain Rammed . | . . . . . Walls Destroyed . | . . . . . Machines Disabled . | . . . . . Actions | -11 -10 -9 -8 -7 --------- Run | Yrd Mat Mat Mat Fac Total 2225 | 97 736 612 435 345 Wait 356 | 12 61 167 85 31 Move 1596 | 75 604 350 284 283 Hop . | . . . . . Pick Up 38 | 5 9 13 7 4 Fast Attach 14 | 5 3 1 1 4 Attach 18 | . 4 3 5 6 Detach 2 | . 2 . . . Swap 19 | . 3 11 5 . Drop 25 | . . 18 5 2 Fire 147 | . 50 49 43 5 Melee 2 | . . . . 2 Ram . | . . . . . Kick . | . . . . . Crush 8 | . . . . 8 Escape Stasis . | . . . . . Rewire . | . . . . . Trap . | . . . . . Miscellaneous . | . . . . . Route ------- -11/Scrapyard -10/Materials (discovered 2 exits: *Mat / [*Min]) -9/Materials -8/Materials -7/Factory History --------- Turn | Location | Event 5 | -11/Scrapyard | Discovered new exit (range 14) 112 | -11/Scrapyard | Entered Materials 281 | -10/Materials | Discovered new exit (range 15) 318 | -10/Materials | Build established: Mutant 427 | -10/Materials | Lost 3 parts (1n2w) 1133 | -10/Materials | Build established: Scavenger-Mutant 1424 | -10/Materials | Discovered new exit (range 10) 1460 | -10/Materials | Entered another Materials area 1460 | -9/Materials | Evolved 2 slots: Weapon x2 1770 | -9/Materials | Build established: Scavenger-Gunner 2369 | -9/Materials | Discovered new exit (range 15) 2467 | -9/Materials | Entered another Materials area 2467 | -8/Materials | Evolved 2 slots: Propulsion x2 2613 | -8/Materials | Build established: Gunner 3017 | -8/Materials | Discovered new exit (range 14) 3033 | -8/Materials | Entered Factory 3033 | -7/Factory | Evolved 2 slots: Utility x2 3182 | -7/Factory | Lost 4 parts (2n2w) 3279 | -7/Factory | Core integrity fell below 50% 3302 | -7/Factory | Lost 6 parts (1p3n1u1w) 3414 | -7/Factory | Build established: Mutant 3417 | -7/Factory | Core integrity fell below 20% 3431 | -7/Factory | Destroyed by G-47 Trooper with Particle Gun Last Messages --------------- 03380_ Slammed into G-47 Trooper. 03390_ Crushed G-47 Trooper. 03390_ G-47 Trooper destroyed. 03391_ Acquired 29 matter. 03394_ Acquired Aluminum Leg. 03395_ G-47 Trooper knocked back. 03396_ G-47 Trooper misfires. 03406_ G-47 Trooper destroyed. 03411_ Acquired 24 matter. 03411_ Adv. Treads destroyed. 03413_ Critical hit (Burn: +37). 03416_ Hvy. EM Pulse Gun destroyed. 03421_ Adv. Treads destroyed. 03422_ Flak Cannon destroyed. Bump into an enemy to attack with the active melee weapon. Even while active, melee weapons do not fire together with ranged weapons in the same volley. 03426_ Hacking Suite destroyed. 03429_ Aluminum Leg destroyed. Map ----- +----------------------------------------------------+ | | | | | ??????????????????????????????????? | | ??????????????????????????????????? | | ??????????????????????????????????? | | ??????????????????????????????????? | | ????????????????????????????????### | | ????????????????????????????????+ | | ????????????????????????????????# | | ??????########??????????????????# | | ??????# """ #??????????????????+ | | ??????# """ #??????????????????# | | ??????# """ #????#+####+######## | | ??????# #????# | | ??????# #????# | | ???????? ?????# | | ???#######+######## ##+##### | | ???# # | | ???# ##### # | | ???# #???# # " " " | | ?### ###?# # " " " | | ?# #?# ########### # " " " | | ?#= #?# #?????????# # " " " | | ?# #?# #?????????# + " " " | | ?# ###/########### # " " " | | ?# ##Y@ # # " " " | | ?## ### # # " " " | | ??# ### # # " " " | | ??# ; # # | | ??# ### g p# ######## | | ??# #?# + #???#### | | ??##+##?#= ! # #?? | | ?? ?# ! # #?? | | ?# !! [# ! # #? | | ?# ! # # #? """ | | ?#! !# # # | | ######### # # ! | | # ############### + [ | | # #?????????????# # [ | | # """ #?????????????# # | | # """ ############### ######## | | # """ # | | # "" # | | # "" + | | # # | | # # | | # = # ##########+########### | | # # #???#] ## | | # [ # #???# """ """ ## " | | # # ##### """ """ ## " | +----------------------------------------------------+ Best States ------------- Heat Dissipation 34 Energy Generation 12 Energy Capacity 265 Matter Stores 300 Matter Capacity 300 Sight Range 16 Robot Scan Range 15 Terrain Scan Density 10 Evasion (%) 55 Recoil Reduction 2 Offensive Hacking 10 Item Schematics ----------------- None Robot Schematics ------------------ None Fabricated ------------ Nothing Alien Tech Used ----------------- None Achievements -------------- None Challenges ------------ None Game ------ Seed 14021999 Manual? 1 Play Time 00:27:25 Cumulative 18.1 hours Start 2024.03.22 @ 01:43:34 End 2024.03.22 @ 02:10:42 Sessions 1 Manual Loads 0 Difficulty Rogue Special Mode None Game No. 29 Rogue 29 Adventurer 0 Explorer 0 Win Type - Total 0 Types 0/0/0/0/0/0/0/0/0 Lore% 22 Gallery% 23 Achievement% 22 Wizard Run 0 Options --------- Layout 1 ASCII 0 Keyboard 1 Movement Numpad Keybinds 0 Fullscreen 1 Font 16/SmallcapsGlow Map View 55x38 Zoom Use 0% Tactical HUD 1 Map Filters NONE Filters NONE Steam 1 RUN: 3ab3aa64-55c1-4f16-8f6f-fb295d9a1bc8